[Event "FIDE Grand Swiss 2023"]
[Site "Villa Marina, Douglas, Isle of Man"]
[Date "2023.10.28"]
[Round "4.18"]
[White "Melkumyan, Hrant"]
[Black "Shankland, Sam"]
[Result "1/2-1/2"]
[WhiteElo "2650"]
[BlackElo "2698"]
[EventDate "2023.10.25"]
[ECO "D38"]
[PlyCount "93"]
[BlackFideId "2004887"]
[TimeControl "40/100 + 20/50 + 15 + 30s/move"]
[WhiteFideId "13302485"]

1.c4 {[%clk 01:40:40] [%emt 00:00:19]} 1...e6 {[%clk 01:40:49] [%emt 00:00:11]} 
2.Nc3 {[%clk 01:40:04] [%emt 00:01:07]} 2...d5 {[%clk 01:41:14] [%emt 00:00:05]} 
3.cxd5 {[%clk 01:40:10] [%emt 00:00:23]} 3...exd5 {[%clk 01:41:40] [%emt
00:00:05]} 4.d4 {[%clk 01:40:33] [%emt 00:00:06]} 4...Nf6 {[%clk 01:37:47] [%emt
00:04:23]} 5.Nf3 {[%clk 01:39:48] [%emt 00:01:15]} 5...Bb4 {[%clk 01:33:23]
[%emt 00:04:54]} 6.Bg5 {[%clk 01:35:57] [%emt 00:04:21]} 6...h6 {[%clk 01:33:46]
[%emt 00:00:08]} 7.Bxf6 {[%clk 01:34:53] [%emt 00:01:34]} 7...Qxf6 {[%clk
01:34:11] [%emt 00:00:05]} 8.Qb3 {[%clk 01:33:46] [%emt 00:01:36]} 8...Qd6 
{[%clk 01:29:32] [%emt 00:05:09]} 9.a3 {[%clk 01:33:49] [%emt 00:00:28]} 
9...Ba5 {[%clk 01:27:40] [%emt 00:02:22]} 10.g3 {[%clk 01:19:53] [%emt
00:14:26]} 10...O-O {[%clk 01:25:15] [%emt 00:02:55]} 11.Bg2 {[%clk 01:19:26]
[%emt 00:00:56]} 11...Nd7 {[%clk 01:22:10] [%emt 00:03:35]} 12.O-O {[%clk
01:19:31] [%emt 00:00:25]} 12...c6 {[%clk 01:20:36] [%emt 00:02:05]} 13.Qc2 
{[%clk 01:14:10] [%emt 00:05:51]} 13...Nf6 {[%clk 01:17:09] [%emt 00:03:57]} 
14.b4 {[%clk 01:14:21] [%emt 00:00:19]} 14...Bb6 {[%clk 01:16:18] [%emt
00:01:20]} 15.e3 {[%clk 01:07:46] [%emt 00:07:05]} 15...g6 {[%clk 01:09:56]
[%emt 00:06:53]} 16.Rfc1 {[%clk 01:03:52] [%emt 00:04:23]} 16...Bf5 {[%clk
01:09:42] [%emt 00:00:44]} 17.Qb3 {[%clk 01:04:09] [%emt 00:00:13]} 17...Rfc8 
{[%clk 01:03:57] [%emt 00:06:16]} 18.Na4 {[%clk 00:59:50] [%emt 00:04:49]} 
18...Rab8 {[%clk 00:59:34] [%emt 00:04:53]} 19.Nc5 {[%clk 00:58:30] [%emt
00:01:49]} 19...a6 {[%clk 00:57:38] [%emt 00:02:27]} 20.Ne5 {[%clk 00:56:44]
[%emt 00:02:16]} 20...Qe7 {[%clk 00:52:52] [%emt 00:05:16]} 21.a4 {[%clk
00:47:33] [%emt 00:09:41]} 21...h5 {[%clk 00:46:26] [%emt 00:06:56]} 22.Ncd3 
{[%clk 00:42:21] [%emt 00:05:41]} 22...Bc7 {[%clk 00:28:48] [%emt 00:18:09]} 
23.b5 {[%clk 00:40:55] [%emt 00:01:56]} 23...Bd6 {[%clk 00:28:36] [%emt
00:00:43]} 24.bxc6 {[%clk 00:34:21] [%emt 00:07:03]} 24...bxc6 {[%clk 00:28:09]
[%emt 00:00:58]} 25.Qc3 {[%clk 00:34:45] [%emt 00:00:05]} 25...c5 {[%clk
00:23:32] [%emt 00:05:07]} 26.dxc5 {[%clk 00:28:49] [%emt 00:06:26]} 26...Rxc5 
{[%clk 00:23:59] [%emt 00:00:03]} 27.Nxc5 {[%clk 00:28:00] [%emt 00:01:19]} 
27...Bxe5 {[%clk 00:24:23] [%emt 00:00:06]} 28.Qa5 {[%clk 00:28:17] [%emt
00:00:13]} 28...Bxa1 {[%clk 00:23:57] [%emt 00:00:55]} 29.Rxa1 {[%clk 00:28:42]
[%emt 00:00:05]} 29...Rb2 {[%clk 00:22:43] [%emt 00:01:44]} 30.Rf1 {[%clk
00:24:51] [%emt 00:04:21]} 30...h4 {[%clk 00:15:04] [%emt 00:08:10]} 31.Qxa6 
{[%clk 00:19:02] [%emt 00:06:19]} 31...h3 {[%clk 00:10:45] [%emt 00:04:49]} 
32.Bf3 {[%clk 00:18:11] [%emt 00:01:21]} 32...Kg7 {[%clk 00:08:29] [%emt
00:02:46]} 33.Nd3 {[%clk 00:17:22] [%emt 00:01:19]} 33...Rd2 {[%clk 00:07:19]
[%emt 00:01:40]} 34.Nf4 {[%clk 00:17:03] [%emt 00:00:48]} 34...d4 {[%clk
00:05:49] [%emt 00:02:01]} 35.exd4 {[%clk 00:16:33] [%emt 00:01:00]} 35...Rxd4 
{[%clk 00:05:52] [%emt 00:00:27]} 36.a5 {[%clk 00:15:29] [%emt 00:01:34]} 
36...Qa3 {[%clk 00:05:27] [%emt 00:00:55]} 37.Qe2 {[%clk 00:07:26] [%emt
00:08:32]} 37...Qxa5 {[%emt 00:01:52]} 38.Qb2 {[%clk 00:06:47]} 38...Rd2 {[%clk
00:04:59] [%emt 00:00:45]} 39.Qa1 {[%clk 00:06:49] [%emt 00:00:28]} 39...Qxa1 
{[%clk 00:02:47] [%emt 00:02:43]} 40.Rxa1 {[%clk 00:07:06] [%emt 00:00:12]} 
40...Nd7 {[%clk 00:01:41] [%emt 00:01:36]} 41.Re1 {[%clk 00:02:44] [%emt
00:04:53]} 41...g5 {[%clk 00:48:50] [%emt 00:03:22]} 42.Nd5 {[%clk 00:47:35]
[%emt 00:05:39]} 42...Kf8 {[%clk 00:43:14] [%emt 00:06:07]} 43.Ne3 {[%clk
00:46:01] [%emt 00:02:03]} 43...Ne5 {[%clk 00:41:51] [%emt 00:01:54]} 44.Bh1 
{[%clk 00:46:02] [%emt 00:00:27]} 44...Bd3 {[%clk 00:41:30] [%emt 00:00:51]} 
45.f4 {[%clk 00:43:08] [%emt 00:03:25]} 45...gxf4 {[%clk 00:41:20] [%emt
00:00:40]} 46.gxf4 {[%clk 00:43:32] [%emt 00:00:05]} 46...Ng6 {[%clk 00:41:35]
[%emt 00:00:15]} 47.Rd1 {[%clk 00:43:53] [%emt 00:00:10]} 1/2-1/2

[Event "FIDE Grand Swiss 2023"]
[Site "Villa Marina, Douglas, Isle of Man"]
[Date "2023.10.28"]
[Round "4.19"]
[White "Artemiev, Vladislav"]
[Black "Huschenbeth, Niclas"]
[Result "1-0"]
[WhiteElo "2697"]
[BlackElo "2605"]
[EventDate "2023.10.25"]
[ECO "A34"]
[PlyCount "81"]
[BlackFideId "24604747"]
[TimeControl "40/100 + 20/50 + 15 + 30s/move"]
[WhiteFideId "24101605"]

1.c4 {[%clk 01:40:45] [%emt 00:00:14]} 1...c5 {[%clk 01:40:22] [%emt 00:00:39]} 
2.Nf3 {[%clk 01:36:13] [%emt 00:05:01]} 2...Nf6 {[%clk 01:40:03] [%emt
00:00:49]} 3.Nc3 {[%clk 01:22:30] [%emt 00:14:13]} 3...e6 {[%clk 01:40:25] [%emt
00:00:08]} 4.a3 {[%clk 01:12:38] [%emt 00:10:22]} 4...d5 {[%clk 01:21:21] [%emt
00:19:35]} 5.cxd5 {[%clk 01:12:11] [%emt 00:00:58]} 5...exd5 {[%clk 01:21:15]
[%emt 00:00:35]} 6.d4 {[%clk 01:10:44] [%emt 00:01:56]} 6...Nc6 {[%clk 01:20:17]
[%emt 00:01:29]} 7.Bg5 {[%clk 01:07:31] [%emt 00:03:42]} 7...cxd4 {[%clk
01:02:37] [%emt 00:18:10]} 8.Nxd4 {[%clk 01:06:32] [%emt 00:01:29]} 8...Bc5 
{[%clk 00:57:07] [%emt 00:06:00]} 9.e3 {[%clk 01:00:30] [%emt 00:06:32]} 
9...O-O {[%clk 00:56:59] [%emt 00:00:38]} 10.Be2 {[%clk 00:43:24] [%emt
00:17:36]} 10...Nxd4 {[%clk 00:56:55] [%emt 00:00:35]} 11.exd4 {[%clk 00:43:41]
[%emt 00:00:13]} 11...Be7 {[%clk 00:57:16] [%emt 00:00:09]} 12.O-O {[%clk
00:43:06] [%emt 00:01:05]} 12...h6 {[%clk 00:54:58] [%emt 00:02:47]} 13.Bf4 
{[%clk 00:38:18] [%emt 00:05:18]} 13...Ne4 {[%clk 00:44:17] [%emt 00:11:12]} 
14.Rc1 {[%clk 00:27:34] [%emt 00:11:14]} 14...Be6 {[%clk 00:30:48] [%emt
00:13:59]} 15.Nxe4 {[%clk 00:14:12] [%emt 00:13:52]} 15...dxe4 {[%clk 00:31:13]
[%emt 00:00:05]} 16.Rc7 {[%clk 00:14:37] [%emt 00:00:05]} 16...Bd5 {[%clk
00:19:47] [%emt 00:11:56]} 17.Bb5 {[%clk 00:14:26] [%emt 00:00:40]} 17...Bd6 
{[%clk 00:12:53] [%emt 00:07:25]} 18.Rd7 {[%clk 00:14:06] [%emt 00:00:51]} 
18...Qb6 {[%clk 00:13:08] [%emt 00:00:14]} 19.Rxd6 {[%clk 00:12:29] [%emt
00:02:07]} 19...Qxb5 {[%clk 00:13:34] [%emt 00:00:04]} 20.Bxh6 {[%clk 00:10:46]
[%emt 00:02:12]} 20...Be6 {[%clk 00:13:51] [%emt 00:00:13]} 21.d5 {[%clk
00:09:25] [%emt 00:01:52]} 21...Bf5 {[%clk 00:13:54] [%emt 00:00:26]} 22.Bc1 
{[%clk 00:03:20] [%emt 00:06:36]} 22...Rad8 {[%clk 00:10:11] [%emt 00:04:13]} 
23.Rxd8 {[%clk 00:03:43] [%emt 00:00:07]} 23...Rxd8 {[%clk 00:10:39] [%emt
00:00:02]} 24.Qd4 {[%clk 00:02:03] [%emt 00:02:09]} 24...Rxd5 {[%clk 00:07:04]
[%emt 00:04:05]} 25.Qxa7 {[%clk 00:02:29] [%emt 00:00:05]} 25...Bg4 {[%clk
00:06:01] [%emt 00:01:33]} 26.Re1 {[%clk 00:00:49] [%emt 00:02:09]} 26...Qe2 
{[%clk 00:05:42] [%emt 00:00:49]} 27.Qe3 {[%clk 00:01:12] [%emt 00:00:08]} 
27...Qxe1+ {[%clk 00:05:16] [%emt 00:00:56]} 28.Qxe1 {[%clk 00:01:37] [%emt
00:00:04]} 28...Rd1 {[%clk 00:05:43] [%emt 00:00:03]} 29.Kf1 {[%clk 00:00:55]
[%emt 00:01:12]} 29...Kf8 {[%clk 00:02:41] [%emt 00:03:32]} 30.Qxd1 {[%clk
00:00:46] [%emt 00:00:40]} 30...Bxd1 {[%clk 00:03:06] [%emt 00:00:05]} 31.Ke1 
{[%clk 00:01:13] [%emt 00:00:03]} 31...Ba4 {[%clk 00:02:08] [%emt 00:01:29]} 
32.Kd2 {[%clk 00:01:23] [%emt 00:00:20]} 32...f5 {[%clk 00:01:42] [%emt
00:00:55]} 33.Kc3 {[%clk 00:01:32] [%emt 00:00:21]} 33...Ke7 {[%clk 00:02:03]
[%emt 00:00:09]} 34.Kb4 {[%clk 00:00:37] [%emt 00:01:24]} 34...Bd1 {[%clk
00:01:00] [%emt 00:01:34]} 35.Kc5 {[%clk 00:00:52] [%emt 00:00:16]} 35...Bb3 
{[%clk 00:00:40] [%emt 00:00:49]} 36.Kb6 {[%clk 00:00:42] [%emt 00:00:40]} 
36...Bd5 {[%clk 00:01:00] [%emt 00:00:10]} 37.g3 {[%clk 00:00:53] [%emt
00:00:19]} 37...Kd7 {[%clk 00:00:39] [%emt 00:00:51]} 38.Bf4 {[%clk 00:00:42]
[%emt 00:00:40]} 38...g6 {[%clk 00:00:44] [%emt 00:00:27]} 39.b4 {[%clk
00:00:39] [%emt 00:00:33]} 39...Bc6 {[%clk 00:00:39] [%emt 00:00:34]} 40.h4 
{[%clk 00:00:33] [%emt 00:00:36]} 40...Bd5 {[%clk 00:00:36] [%emt 00:00:33]} 
41.b5 {[%clk 00:46:00] [%emt 00:05:02]} 1-0

[Event "FIDE Grand Swiss 2023"]
[Site "Villa Marina, Douglas, Isle of Man"]
[Date "2023.10.28"]
[Round "4.20"]
[White "Jumabayev, Rinat"]
[Black "Martirosyan, Haik M."]
[Result "1-0"]
[WhiteElo "2585"]
[BlackElo "2696"]
[EventDate "2023.10.25"]
[ECO "E01"]
[PlyCount "113"]
[BlackFideId "13306553"]
[TimeControl "40/100 + 20/50 + 15 + 30s/move"]
[WhiteFideId "13702661"]

1.d4 {[%clk 01:40:58] [%emt 00:00:01]} 1...Nf6 {[%clk 01:40:31] [%emt 00:00:28]} 
2.c4 {[%clk 01:41:21] [%emt 00:00:07]} 2...e6 {[%clk 01:40:52] [%emt 00:00:09]} 
3.g3 {[%clk 01:41:46] [%emt 00:00:05]} 3...d5 {[%clk 01:39:59] [%emt 00:01:24]} 
4.Bg2 {[%clk 01:41:52] [%emt 00:00:24]} 4...Be7 {[%clk 01:39:28] [%emt
00:01:00]} 5.Nf3 {[%clk 01:41:20] [%emt 00:01:02]} 5...O-O {[%clk 01:39:49]
[%emt 00:00:09]} 6.Nc3 {[%clk 01:41:43] [%emt 00:00:07]} 6...Nbd7 {[%clk
01:39:49] [%emt 00:00:30]} 7.Qd3 {[%clk 01:41:49] [%emt 00:00:25]} 7...a6 
{[%clk 01:38:33] [%emt 00:01:46]} 8.b3 {[%clk 01:27:34] [%emt 00:14:45]} 8...b5 
{[%clk 01:37:10] [%emt 00:01:53]} 9.cxd5 {[%clk 01:25:19] [%emt 00:02:46]} 
9...exd5 {[%clk 01:37:15] [%emt 00:00:24]} 10.O-O {[%clk 01:25:39] [%emt
00:00:10]} 10...Bb7 {[%clk 01:34:36] [%emt 00:03:09]} 11.Ne5 {[%clk 01:12:00]
[%emt 00:14:09]} 11...c6 {[%clk 01:30:52] [%emt 00:04:14]} 12.Bf4 {[%clk
01:06:55] [%emt 00:05:36]} 12...Nxe5 {[%clk 01:24:44] [%emt 00:06:38]} 13.Bxe5 
{[%clk 01:07:00] [%emt 00:00:25]} 13...a5 {[%clk 01:18:53] [%emt 00:06:20]} 
14.Qc2 {[%clk 01:04:04] [%emt 00:03:26]} 14...Nd7 {[%clk 01:01:17] [%emt
00:18:06]} 15.Bf4 {[%clk 01:04:09] [%emt 00:00:25]} 15...Nb6 {[%clk 00:59:14]
[%emt 00:02:32]} 16.Nd1 {[%clk 00:49:54] [%emt 00:14:46]} 16...Bf6 {[%clk
00:53:41] [%emt 00:06:04]} 17.Be3 {[%clk 00:32:14] [%emt 00:18:11]} 17...Nc8 
{[%clk 00:42:59] [%emt 00:11:10]} 18.Nb2 {[%clk 00:32:20] [%emt 00:00:24]} 
18...Nd6 {[%clk 00:42:55] [%emt 00:00:34]} 19.Rad1 {[%clk 00:32:40] [%emt
00:00:10]} 19...b4 {[%clk 00:40:24] [%emt 00:03:01]} 20.Na4 {[%clk 00:30:01]
[%emt 00:03:11]} 20...Nb5 {[%clk 00:39:29] [%emt 00:01:24]} 21.f3 {[%clk
00:27:07] [%emt 00:03:24]} 21...Nc7 {[%clk 00:29:22] [%emt 00:10:36]} 22.Nc5 
{[%clk 00:24:17] [%emt 00:03:20]} 22...Ba6 {[%clk 00:27:36] [%emt 00:02:17]} 
23.Bf2 {[%clk 00:24:23] [%emt 00:00:24]} 23...Be7 {[%clk 00:23:17] [%emt
00:04:49]} 24.Rfe1 {[%clk 00:17:32] [%emt 00:07:21]} 24...Bxc5 {[%clk 00:20:09]
[%emt 00:03:38]} 25.dxc5 {[%clk 00:12:33] [%emt 00:05:29]} 25...Qf6 {[%clk
00:15:41] [%emt 00:04:58]} 26.e4 {[%clk 00:10:55] [%emt 00:02:09]} 26...Rfd8 
{[%clk 00:11:09] [%emt 00:05:01]} 27.f4 {[%clk 00:10:49] [%emt 00:00:36]} 
27...dxe4 {[%clk 00:10:32] [%emt 00:01:07]} 28.Bxe4 {[%clk 00:11:06] [%emt
00:00:12]} 28...Nb5 {[%clk 00:09:41] [%emt 00:01:22]} 29.Bxh7+ {[%clk 00:07:50]
[%emt 00:03:46]} 29...Kh8 {[%clk 00:10:10] [%emt 00:00:01]} 30.Bf5 {[%clk
00:06:49] [%emt 00:01:31]} 30...Nc3 {[%clk 00:10:00] [%emt 00:00:40]} 31.Rd7 
{[%clk 00:04:54] [%emt 00:02:24]} 31...Rxd7 {[%clk 00:08:22] [%emt 00:02:08]} 
32.Bxd7 {[%clk 00:05:23] [%emt 00:00:01]} 32...Rd8 {[%clk 00:08:34] [%emt
00:00:18]} 33.Re5 {[%clk 00:04:12] [%emt 00:01:42]} 33...Qxe5 {[%clk 00:06:30]
[%emt 00:02:35]} 34.fxe5 {[%clk 00:04:40] [%emt 00:00:01]} 34...Rxd7 {[%clk
00:06:59] [%emt 00:00:01]} 35.e6 {[%clk 00:01:33] [%emt 00:03:37]} 35...fxe6 
{[%clk 00:07:16] [%emt 00:00:13]} 36.Be1 {[%clk 00:00:57] [%emt 00:01:06]} 
36...Rd1 {[%clk 00:05:46] [%emt 00:01:59]} 37.Qf2 {[%clk 00:01:16] [%emt
00:00:11]} 37...Bd3 {[%clk 00:03:21] [%emt 00:02:55]} 38.g4 {[%clk 00:01:11]
[%emt 00:00:36]} 38...Kg8 {[%clk 00:02:23] [%emt 00:01:28]} 39.h3 {[%clk
00:00:39] [%emt 00:01:02]} 39...Be4 {[%clk 00:01:29] [%emt 00:01:24]} 40.Qh4 
{[%clk 00:00:42] [%emt 00:00:27]} 40...Bg6 {[%clk 00:00:33] [%emt 00:01:26]} 
41.Kf2 {[%clk 00:34:41] [%emt 00:16:31]} 41...Kf7 {[%clk 00:46:00] [%emt
00:05:02]} 42.Qh8 {[%clk 00:33:01] [%emt 00:02:11]} 42...e5 {[%clk 00:34:41]
[%emt 00:11:49]} 43.Qb8 {[%clk 00:22:53] [%emt 00:10:38]} 43...e4 {[%clk
00:33:30] [%emt 00:01:41]} 44.Qe5 {[%clk 00:22:05] [%emt 00:01:17]} 44...Rd3 
{[%clk 00:29:35] [%emt 00:04:25]} 45.h4 {[%clk 00:20:40] [%emt 00:01:56]} 
45...e3+ {[%clk 00:26:04] [%emt 00:04:01]} 46.Kg1 {[%clk 00:10:31] [%emt
00:10:39]} 46...Rd4 {[%clk 00:14:15] [%emt 00:12:19]} 47.Kh2 {[%clk 00:08:07]
[%emt 00:02:54]} 47...Nb5 {[%emt 00:04:24]} 48.h5 {[%clk 00:06:42] [%emt
00:01:53]} 48...Bb1 {[%clk 00:08:18] [%emt 00:02:35]} 49.g5 {[%clk 00:06:29]
[%emt 00:00:43]} 49...Rd5 {[%clk 00:07:19] [%emt 00:01:29]} 50.Qxe3 {[%clk
00:04:50] [%emt 00:02:09]} 50...Nd4 {[%clk 00:06:15] [%emt 00:01:33]} 51.g6+ 
{[%clk 00:05:01] [%emt 00:00:19]} 51...Kf6 {[%clk 00:06:22] [%emt 00:00:24]} 
52.Bh4+ {[%clk 00:04:36] [%emt 00:00:55]} 52...Kf5 {[%clk 00:06:51]} 53.Kg3 
{[%clk 00:04:30] [%emt 00:00:36]} 53...Ne6 {[%clk 00:06:32] [%emt 00:00:49]} 
54.Qf2+ {[%clk 00:04:48] [%emt 00:00:11]} 54...Ke5 {[%clk 00:06:58] [%emt
00:00:04]} 55.Qb2+ {[%clk 00:05:10] [%emt 00:00:08]} 55...Nd4 {[%clk 00:06:21]
[%emt 00:01:07]} 56.Qxb1 {[%clk 00:05:30] [%emt 00:00:09]} 56...Nf5+ {[%clk
00:06:36] [%emt 00:00:15]} 57.Kh3 {[%clk 00:05:44] [%emt 00:00:17]} 1-0

[Event "FIDE Grand Swiss 2023"]
[Site "Villa Marina, Douglas, Isle of Man"]
[Date "2023.10.28"]
[Round "4.21"]
[White "Fedoseev, Vladimir"]
[Black "Kuybokarov, Temur"]
[Result "1/2-1/2"]
[WhiteElo "2691"]
[BlackElo "2584"]
[EventDate "2023.10.25"]
[ECO "E64"]
[PlyCount "86"]
[BlackFideId "14203049"]
[TimeControl "40/100 + 20/50 + 15 + 30s/move"]
[WhiteFideId "24130737"]

1.d4 {[%clk 01:40:25] [%emt 00:00:34]} 1...Nf6 {[%clk 01:40:45] [%emt 00:00:17]} 
2.c4 {[%clk 01:40:46] [%emt 00:00:08]} 2...g6 {[%clk 01:40:50] [%emt 00:00:25]} 
3.g3 {[%clk 01:40:42] [%emt 00:00:33]} 3...Bg7 {[%clk 01:40:34] [%emt 00:00:46]} 
4.Bg2 {[%clk 01:41:04] [%emt 00:00:08]} 4...O-O {[%clk 01:40:38] [%emt
00:00:27]} 5.Nc3 {[%clk 01:41:30] [%emt 00:00:05]} 5...d6 {[%clk 01:39:13] [%emt
00:01:55]} 6.Nf3 {[%clk 01:40:48] [%emt 00:01:11]} 6...c5 {[%clk 01:37:50] [%emt
00:01:54]} 7.d5 {[%clk 01:38:59] [%emt 00:02:19]} 7...e6 {[%clk 01:37:47] [%emt
00:00:33]} 8.O-O {[%clk 01:39:19] [%emt 00:00:11]} 8...exd5 {[%clk 01:37:21]
[%emt 00:00:57]} 9.cxd5 {[%clk 01:39:47] [%emt 00:00:01]} 9...Re8 {[%clk
01:37:19] [%emt 00:00:32]} 10.Re1 {[%clk 01:40:10] [%emt 00:00:08]} 10...Nbd7 
{[%clk 01:25:50] [%emt 00:11:59]} 11.Bf4 {[%clk 01:40:21] [%emt 00:00:18]} 
11...Nh5 {[%clk 01:20:19] [%emt 00:06:01]} 12.Bg5 {[%clk 01:40:18] [%emt
00:00:33]} 12...Qc7 {[%clk 01:16:41] [%emt 00:04:08]} 13.Rc1 {[%clk 01:34:42]
[%emt 00:06:05]} 13...a6 {[%clk 01:07:39] [%emt 00:09:33]} 14.b4 {[%clk
01:19:18] [%emt 00:15:53]} 14...h6 {[%clk 01:02:48] [%emt 00:05:22]} 15.Bd2 
{[%clk 01:18:47] [%emt 00:01:01]} 15...Qd8 {[%clk 00:50:32] [%emt 00:12:46]} 
16.a3 {[%clk 01:07:56] [%emt 00:11:21]} 16...b5 {[%clk 00:47:29] [%emt
00:03:34]} 17.e4 {[%clk 01:07:12] [%emt 00:01:13]} 17...Bb7 {[%clk 00:46:30]
[%emt 00:01:29]} 18.Rc2 {[%clk 01:02:10] [%emt 00:05:31]} 18...Rc8 {[%clk
00:43:04] [%emt 00:03:57]} 19.Qc1 {[%clk 01:01:36] [%emt 00:01:03]} 19...Kh7 
{[%clk 00:41:53] [%emt 00:01:42]} 20.Bf1 {[%clk 00:46:18] [%emt 00:15:48]} 
20...Nhf6 {[%clk 00:31:48] [%emt 00:10:35]} 21.h3 {[%clk 00:42:12] [%emt
00:04:35]} 21...Re7 {[%clk 00:25:59] [%emt 00:06:20]} 22.Qb1 {[%clk 00:40:16]
[%emt 00:02:25]} 22...Nb6 {[%clk 00:22:41] [%emt 00:03:49]} 23.bxc5 {[%clk
00:36:31] [%emt 00:04:16]} 23...Rxc5 {[%clk 00:21:03] [%emt 00:02:07]} 24.a4 
{[%clk 00:30:46] [%emt 00:06:15]} 24...Nc4 {[%clk 00:20:18] [%emt 00:01:15]} 
25.Bc1 {[%clk 00:28:30] [%emt 00:02:45]} 25...Qe8 {[%clk 00:18:26] [%emt
00:02:22]} 26.axb5 {[%clk 00:25:53] [%emt 00:03:08]} 26...Nxe4 {[%clk 00:13:33]
[%emt 00:05:23]} 27.bxa6 {[%clk 00:21:46] [%emt 00:04:37]} 27...Bxa6 {[%clk
00:13:48] [%emt 00:00:15]} 28.Nxe4 {[%clk 00:21:13] [%emt 00:01:03]} 28...Rxe4 
{[%clk 00:14:03] [%emt 00:00:15]} 29.Rce2 {[%clk 00:16:32] [%emt 00:05:10]} 
29...Rxe2 {[%clk 00:13:58] [%emt 00:00:36]} 30.Bxe2 {[%clk 00:15:23] [%emt
00:01:38]} 30...Qc8 {[%clk 00:12:31] [%emt 00:01:57]} 31.Qe4 {[%clk 00:13:23]
[%emt 00:02:29]} 31...Bb7 {[%clk 00:11:51] [%emt 00:01:10]} 32.Qg4 {[%clk
00:07:14] [%emt 00:06:39]} 32...Bxd5 {[%clk 00:11:35] [%emt 00:00:46]} 33.Qxc8 
{[%clk 00:07:00] [%emt 00:00:44]} 33...Rxc8 {[%clk 00:12:00] [%emt 00:00:07]} 
34.Rd1 {[%clk 00:07:01] [%emt 00:00:27]} 34...Be4 {[%clk 00:08:12] [%emt
00:04:18]} 35.Bf4 {[%clk 00:06:38] [%emt 00:00:53]} 35...d5 {[%clk 00:07:37]
[%emt 00:01:05]} 36.h4 {[%clk 00:03:52] [%emt 00:03:16]} 36...f5 {[%clk
00:05:40] [%emt 00:02:27]} 37.Ne1 {[%clk 00:03:52] [%emt 00:00:31]} 37...d4 
{[%clk 00:04:21] [%emt 00:01:49]} 38.Nd3 {[%clk 00:02:16] [%emt 00:02:06]} 
38...Nb6 {[%clk 00:03:00] [%emt 00:01:51]} 39.f3 {[%clk 00:02:05] [%emt
00:00:40]} 39...Bd5 {[%clk 00:02:10] [%emt 00:01:21]} 40.Be5 {[%clk 00:01:18]
[%emt 00:01:17]} 40...g5 {[%clk 00:00:51] [%emt 00:01:49]} 41.Kf2 {[%clk
00:42:58] [%emt 00:08:50]} 41...Bc4 {[%clk 00:48:11] [%emt 00:03:10]} 42.hxg5 
{[%clk 00:38:51] [%emt 00:04:37]} 42...hxg5 {[%clk 00:48:29] [%emt 00:00:11]} 
43.f4 {[%clk 00:30:11] [%emt 00:09:11]} 43...gxf4 {[%clk 00:43:39] [%emt
00:05:20]} 1/2-1/2